Workbook

Sheet H29.4
B1: 行政区別の世帯数と人口
G2: (平成29年 | H2: 4月末日現在)
B4: 校区 | C4: 区名 | D4: 世帯数 | E4: 人口
E5: 男 | F5: 女 | G5: 全体
B6: 腹赤 | C6: 平原 | D6: 322 | E6: 352 | F6: 346 | G6: =SUM(E6:F6) -> 698
C7: 清源寺 | D7: 684 | E7: 791 | F7: 679 | G7: =SUM(E7:F7) -> 1470
C8: 上沖洲 | D8: 336 | E8: 371 | F8: 380 | G8: 751
C9: 腹赤 | D9: 354 | E9: 445 | F9: 484 | G9: 929
C10: 腹赤新町 | D10: 92 | E10: 108 | F10: 111 | G10: 219
C11: 校区合計 | D11: =SUM(D6:D10) -> 1788 | E11: =SUM(E6:E10) -> 2067 | F11: =SUM(F6:F10) -> 2000 | G11: =SUM(G6:G10) -> 4067
B12: 六栄 | C12: 折地 | D12: 195 | E12: 213 | F12: 261 | G12: =SUM(E12:F12) -> 474
C13: 赤崎 | D13: 127 | E13: 170 | F13: 169 | G13: =SUM(E13:F13) -> 339
C14: 高田 | D14: 57 | E14: 77 | F14: 84 | G14: 161
C15: 鷲巣 | D15: 219 | E15: 276 | F15: 262 | G15: 538
C16: 立野 | D16: 172 | E16: 179 | F16: 188 | G16: 367
C17: 向野 | D17: 386 | E17: 457 | F17: 478 | G17: 935
C18: 宮崎 | D18: 154 | E18: 182 | F18: 199 | G18: 381
C19: 赤田 | D19: 100 | E19: 100 | F19: 125 | G19: 225
C20: 葛輪 | D20: 70 | E20: 75 | F20: 94 | G20: 169
C21: 永方 | D21: 105 | E21: 100 | F21: 145 | G21: 245
C22: 塩屋 | D22: 93 | E22: 93 | F22: 111 | G22: 204
C23: 向野北 | D23: 251 | E23: 296 | F23: 141 | G23: 437
C24: 古城 | D24: 263 | E24: 325 | F24: 336 | G24: 661
C25: 校区合計 | D25: =SUM(D12:D24) -> 2192 | E25: =SUM(E12:E24) -> 2543 | F25: =SUM(F12:F24) -> 2593 | G25: =SUM(G12:G24) -> 5136
B26: 清里 | C26: 建浜 | D26: 284 | E26: 357 | F26: 376 | G26: =SUM(E26:F26) -> 733
C27: 駅通 | D27: 125 | E27: 149 | F27: 148 | G27: =SUM(E27:F27) -> 297
C28: 梅田 | D28: 259 | E28: 293 | F28: 332 | G28: 625
C29: 校区合計 | D29: =SUM(D26:D28) -> 668 | E29: =SUM(E26:E28) -> 799 | F29: =SUM(F26:F28) -> 856 | G29: =SUM(G26:G28) -> 1655
B30: 長洲 | C30: 出町 | D30: 215 | E30: 237 | F30: 258 | G30: =SUM(E30:F30) -> 495
C31: 新町 | D31: 155 | E31: 176 | F31: 174 | G31: =SUM(E31:F31) -> 350
C32: 西新町 | D32: 36 | E32: 29 | F32: 35 | G32: 64
C33: 宮ノ町 | D33: 133 | E33: 148 | F33: 153 | G33: 301
C34: 松原 | D34: 104 | E34: 109 | F34: 113 | G34: 222
C35: 新山 | D35: 298 | E35: 306 | F35: 357 | G35: 663
C36: 宝町 | D36: 148 | E36: 133 | F36: 151 | G36: 284
C37: 磯町 | D37: 114 | E37: 103 | F37: 127 | G37: 230
C38: 上町 | D38: 72 | E38: 77 | F38: 83 | G38: 160
C39: 中町 | D39: 56 | E39: 61 | F39: 68 | G39: 129
C40: 下本 | D40: 43 | E40: 35 | F40: 59 | G40: 94
C41: 今町 | D41: 47 | E41: 50 | F41: 69 | G41: 119
C42: 下東 | D42: 245 | E42: 298 | F42: 302 | G42: 600
C43: 西荒神 | D43: 61 | E43: 69 | F43: 66 | G43: 135
C44: 東荒神 | D44: 359 | E44: 401 | F44: 449 | G44: 850
C45: 大明神 | D45: 267 | E45: 309 | F45: 320 | G45: 629
C46: 校区合計 | D46: =SUM(D30:D45) -> 2353 | E46: =SUM(E30:E45) -> 2541 | F46: =SUM(F30:F45) -> 2784 | G46: =SUM(G30:G45) -> 5325
B48: 全体 | C48: =D11+D25+D29+D46 -> 7001 | E48: =G11+G25+G29+G46 -> 16183 | G48: =E11+E25+E29+E46 -> 7950 | H48: =F11+F25+F29+F46 -> 8233
D49: （世帯数） | F49: （人口） | G49: （男） | H49: （女）

Sheet H29.5
B1: 行政区別の世帯数と人口
G2: (平成29年 | H2: 5月末日現在)
B4: 校区 | C4: 区名 | D4: 世帯数 | E4: 人口
E5: 男 | F5: 女 | G5: 全体
B6: 腹赤 | C6: 平原 | D6: 323 | E6: 352 | F6: 346 | G6: =SUM(E6:F6) -> 698
C7: 清源寺 | D7: 684 | E7: 791 | F7: 676 | G7: =SUM(E7:F7) -> 1467
C8: 上沖洲 | D8: 339 | E8: 375 | F8: 378 | G8: 753
C9: 腹赤 | D9: 355 | E9: 445 | F9: 485 | G9: 930
C10: 腹赤新町 | D10: 91 | E10: 108 | F10: 109 | G10: 217
C11: 校区合計 | D11: =SUM(D6:D10) -> 1792 | E11: =SUM(E6:E10) -> 2071 | F11: =SUM(F6:F10) -> 1994 | G11: =SUM(G6:G10) -> 4065
B12: 六栄 | C12: 折地 | D12: 194 | E12: 213 | F12: 259 | G12: =SUM(E12:F12) -> 472
C13: 赤崎 | D13: 127 | E13: 169 | F13: 169 | G13: =SUM(E13:F13) -> 338
C14: 高田 | D14: 57 | E14: 78 | F14: 85 | G14: 163
C15: 鷲巣 | D15: 218 | E15: 273 | F15: 261 | G15: 534
C16: 立野 | D16: 176 | E16: 181 | F16: 190 | G16: 371
C17: 向野 | D17: 386 | E17: 456 | F17: 477 | G17: 933
C18: 宮崎 | D18: 154 | E18: 182 | F18: 199 | G18: 381
C19: 赤田 | D19: 100 | E19: 100 | F19: 125 | G19: 225
C20: 葛輪 | D20: 70 | E20: 76 | F20: 94 | G20: 170
C21: 永方 | D21: 105 | E21: 100 | F21: 145 | G21: 245
C22: 塩屋 | D22: 91 | E22: 92 | F22: 109 | G22: 201
C23: 向野北 | D23: 252 | E23: 299 | F23: 143 | G23: 442
C24: 古城 | D24: 262 | E24: 323 | F24: 337 | G24: 660
C25: 校区合計 | D25: =SUM(D12:D24) -> 2192 | E25: =SUM(E12:E24) -> 2542 | F25: =SUM(F12:F24) -> 2593 | G25: =SUM(G12:G24) -> 5135
B26: 清里 | C26: 建浜 | D26: 282 | E26: 358 | F26: 373 | G26: =SUM(E26:F26) -> 731
C27: 駅通 | D27: 125 | E27: 149 | F27: 148 | G27: =SUM(E27:F27) -> 297
C28: 梅田 | D28: 260 | E28: 295 | F28: 332 | G28: 627
C29: 校区合計 | D29: =SUM(D26:D28) -> 667 | E29: =SUM(E26:E28) -> 802 | F29: =SUM(F26:F28) -> 853 | G29: =SUM(G26:G28) -> 1655
B30: 長洲 | C30: 出町 | D30: 214 | E30: 237 | F30: 255 | G30: =SUM(E30:F30) -> 492
C31: 新町 | D31: 156 | E31: 177 | F31: 173 | G31: =SUM(E31:F31) -> 350
C32: 西新町 | D32: 36 | E32: 29 | F32: 35 | G32: 64
C33: 宮ノ町 | D33: 133 | E33: 148 | F33: 154 | G33: 302
C34: 松原 | D34: 104 | E34: 109 | F34: 112 | G34: 221
C35: 新山 | D35: 295 | E35: 306 | F35: 354 | G35: 660
C36: 宝町 | D36: 148 | E36: 133 | F36: 151 | G36: 284
C37: 磯町 | D37: 114 | E37: 102 | F37: 127 | G37: 229
C38: 上町 | D38: 72 | E38: 76 | F38: 83 | G38: 159
C39: 中町 | D39: 56 | E39: 61 | F39: 68 | G39: 129
C40: 下本 | D40: 43 | E40: 35 | F40: 59 | G40: 94
C41: 今町 | D41: 47 | E41: 50 | F41: 69 | G41: 119
C42: 下東 | D42: 247 | E42: 299 | F42: 304 | G42: 603
C43: 西荒神 | D43: 61 | E43: 69 | F43: 65 | G43: 134
C44: 東荒神 | D44: 359 | E44: 399 | F44: 450 | G44: 849
C45: 大明神 | D45: 268 | E45: 308 | F45: 321 | G45: 629
C46: 校区合計 | D46: =SUM(D30:D45) -> 2353 | E46: =SUM(E30:E45) -> 2538 | F46: =SUM(F30:F45) -> 2780 | G46: =SUM(G30:G45) -> 5318
B48: 全体 | C48: =D11+D25+D29+D46 -> 7004 | E48: =G11+G25+G29+G46 -> 16173 | G48: =E11+E25+E29+E46 -> 7953 | H48: =F11+F25+F29+F46 -> 8220
D49: （世帯数） | F49: （人口） | G49: （男） | H49: （女）

Sheet H29.6
B1: 行政区別の世帯数と人口
G2: (平成29年 | H2: 6月末日現在)
B4: 校区 | C4: 区名 | D4: 世帯数 | E4: 人口
E5: 男 | F5: 女 | G5: 全体
B6: 腹赤 | C6: 平原 | D6: 322 | E6: 349 | F6: 343 | G6: =SUM(E6:F6) -> 692
C7: 清源寺 | D7: 684 | E7: 791 | F7: 677 | G7: =SUM(E7:F7) -> 1468
C8: 上沖洲 | D8: 342 | E8: 375 | F8: 376 | G8: 751
C9: 腹赤 | D9: 354 | E9: 442 | F9: 482 | G9: 924
C10: 腹赤新町 | D10: 91 | E10: 107 | F10: 109 | G10: 216
C11: 校区合計 | D11: =SUM(D6:D10) -> 1793 | E11: =SUM(E6:E10) -> 2064 | F11: =SUM(F6:F10) -> 1987 | G11: =SUM(G6:G10) -> 4051
B12: 六栄 | C12: 折地 | D12: 194 | E12: 213 | F12: 258 | G12: =SUM(E12:F12) -> 471
C13: 赤崎 | D13: 127 | E13: 169 | F13: 169 | G13: =SUM(E13:F13) -> 338
C14: 高田 | D14: 57 | E14: 78 | F14: 85 | G14: 163
C15: 鷲巣 | D15: 218 | E15: 271 | F15: 261 | G15: 532
C16: 立野 | D16: 175 | E16: 180 | F16: 189 | G16: 369
C17: 向野 | D17: 387 | E17: 454 | F17: 479 | G17: 933
C18: 宮崎 | D18: 154 | E18: 183 | F18: 199 | G18: 382
C19: 赤田 | D19: 97 | E19: 100 | F19: 122 | G19: 222
C20: 葛輪 | D20: 70 | E20: 77 | F20: 94 | G20: 171
C21: 永方 | D21: 105 | E21: 100 | F21: 144 | G21: 244
C22: 塩屋 | D22: 91 | E22: 92 | F22: 110 | G22: 202
C23: 向野北 | D23: 240 | E23: 287 | F23: 143 | G23: 430
C24: 古城 | D24: 264 | E24: 326 | F24: 340 | G24: 666
C25: 校区合計 | D25: =SUM(D12:D24) -> 2179 | E25: =SUM(E12:E24) -> 2530 | F25: =SUM(F12:F24) -> 2593 | G25: =SUM(G12:G24) -> 5123
B26: 清里 | C26: 建浜 | D26: 283 | E26: 359 | F26: 374 | G26: =SUM(E26:F26) -> 733
C27: 駅通 | D27: 125 | E27: 149 | F27: 148 | G27: =SUM(E27:F27) -> 297
C28: 梅田 | D28: 262 | E28: 294 | F28: 333 | G28: 627
C29: 校区合計 | D29: =SUM(D26:D28) -> 670 | E29: =SUM(E26:E28) -> 802 | F29: =SUM(F26:F28) -> 855 | G29: =SUM(G26:G28) -> 1657
B30: 長洲 | C30: 出町 | D30: 213 | E30: 238 | F30: 254 | G30: =SUM(E30:F30) -> 492
C31: 新町 | D31: 155 | E31: 176 | F31: 173 | G31: =SUM(E31:F31) -> 349
C32: 西新町 | D32: 37 | E32: 29 | F32: 35 | G32: 64
C33: 宮ノ町 | D33: 133 | E33: 150 | F33: 153 | G33: 303
C34: 松原 | D34: 105 | E34: 113 | F34: 115 | G34: 228
C35: 新山 | D35: 294 | E35: 306 | F35: 353 | G35: 659
C36: 宝町 | D36: 148 | E36: 133 | F36: 152 | G36: 285
C37: 磯町 | D37: 115 | E37: 103 | F37: 127 | G37: 230
C38: 上町 | D38: 72 | E38: 76 | F38: 83 | G38: 159
C39: 中町 | D39: 56 | E39: 61 | F39: 68 | G39: 129
C40: 下本 | D40: 43 | E40: 35 | F40: 58 | G40: 93
C41: 今町 | D41: 47 | E41: 50 | F41: 69 | G41: 119
C42: 下東 | D42: 246 | E42: 296 | F42: 305 | G42: 601
C43: 西荒神 | D43: 61 | E43: 69 | F43: 65 | G43: 134
C44: 東荒神 | D44: 363 | E44: 404 | F44: 447 | G44: 851
C45: 大明神 | D45: 266 | E45: 304 | F45: 316 | G45: 620
C46: 校区合計 | D46: =SUM(D30:D45) -> 2354 | E46: =SUM(E30:E45) -> 2543 | F46: =SUM(F30:F45) -> 2773 | G46: =SUM(G30:G45) -> 5316
B48: 全体 | C48: =D11+D25+D29+D46 -> 6996 | E48: =G11+G25+G29+G46 -> 16147 | G48: =E11+E25+E29+E46 -> 7939 | H48: =F11+F25+F29+F46 -> 8208
D49: （世帯数） | F49: （人口） | G49: （男） | H49: （女）

Sheet H29.7
B1: 行政区別の世帯数と人口
G2: (平成29年 | H2: 7月末日現在)
B4: 校区 | C4: 区名 | D4: 世帯数 | E4: 人口
E5: 男 | F5: 女 | G5: 全体
B6: 腹赤 | C6: 平原 | D6: 320 | E6: 348 | F6: 342 | G6: =SUM(E6:F6) -> 690
C7: 清源寺 | D7: 679 | E7: 786 | F7: 682 | G7: =SUM(E7:F7) -> 1468
C8: 上沖洲 | D8: 342 | E8: 377 | F8: 376 | G8: 753
C9: 腹赤 | D9: 351 | E9: 436 | F9: 475 | G9: 911
C10: 腹赤新町 | D10: 91 | E10: 105 | F10: 109 | G10: 214
C11: 校区合計 | D11: =SUM(D6:D10) -> 1783 | E11: =SUM(E6:E10) -> 2052 | F11: =SUM(F6:F10) -> 1984 | G11: =SUM(G6:G10) -> 4036
B12: 六栄 | C12: 折地 | D12: 195 | E12: 214 | F12: 258 | G12: =SUM(E12:F12) -> 472
C13: 赤崎 | D13: 127 | E13: 169 | F13: 170 | G13: =SUM(E13:F13) -> 339
C14: 高田 | D14: 57 | E14: 78 | F14: 85 | G14: 163
C15: 鷲巣 | D15: 218 | E15: 271 | F15: 260 | G15: 531
C16: 立野 | D16: 178 | E16: 183 | F16: 188 | G16: 371
C17: 向野 | D17: 383 | E17: 450 | F17: 475 | G17: 925
C18: 宮崎 | D18: 152 | E18: 182 | F18: 198 | G18: 380
C19: 赤田 | D19: 100 | E19: 100 | F19: 125 | G19: 225
C20: 葛輪 | D20: 70 | E20: 77 | F20: 94 | G20: 171
C21: 永方 | D21: 106 | E21: 101 | F21: 146 | G21: 247
C22: 塩屋 | D22: 91 | E22: 92 | F22: 110 | G22: 202
C23: 向野北 | D23: 239 | E23: 284 | F23: 141 | G23: 425
C24: 古城 | D24: 265 | E24: 327 | F24: 344 | G24: 671
C25: 校区合計 | D25: =SUM(D12:D24) -> 2181 | E25: =SUM(E12:E24) -> 2528 | F25: =SUM(F12:F24) -> 2594 | G25: =SUM(G12:G24) -> 5122
B26: 清里 | C26: 建浜 | D26: 288 | E26: 366 | F26: 377 | G26: =SUM(E26:F26) -> 743
C27: 駅通 | D27: 126 | E27: 149 | F27: 148 | G27: =SUM(E27:F27) -> 297
C28: 梅田 | D28: 263 | E28: 294 | F28: 333 | G28: 627
C29: 校区合計 | D29: 677 | E29: =SUM(E26:E28) -> 809 | F29: =SUM(F26:F28) -> 858 | G29: =SUM(G26:G28) -> 1667
B30: 長洲 | C30: 出町 | D30: 215 | E30: 237 | F30: 254 | G30: =SUM(E30:F30) -> 491
C31: 新町 | D31: 155 | E31: 176 | F31: 174 | G31: =SUM(E31:F31) -> 350
C32: 西新町 | D32: 37 | E32: 29 | F32: 35 | G32: 64
C33: 宮ノ町 | D33: 133 | E33: 150 | F33: 152 | G33: 302
C34: 松原 | D34: 104 | E34: 111 | F34: 115 | G34: 226
C35: 新山 | D35: 292 | E35: 305 | F35: 353 | G35: 658
C36: 宝町 | D36: 147 | E36: 133 | F36: 151 | G36: 284
C37: 磯町 | D37: 115 | E37: 102 | F37: 127 | G37: 229
C38: 上町 | D38: 72 | E38: 76 | F38: 83 | G38: 159
C39: 中町 | D39: 55 | E39: 61 | F39: 67 | G39: 128
C40: 下本 | D40: 43 | E40: 35 | F40: 58 | G40: 93
C41: 今町 | D41: 47 | E41: 50 | F41: 69 | G41: 119
C42: 下東 | D42: 244 | E42: 293 | F42: 304 | G42: 597
C43: 西荒神 | D43: 62 | E43: 72 | F43: 67 | G43: 139
C44: 東荒神 | D44: 367 | E44: 407 | F44: 447 | G44: 854
C45: 大明神 | D45: 267 | E45: 306 | F45: 316 | G45: 622
C46: 校区合計 | D46: =SUM(D30:D45) -> 2355 | E46: =SUM(E30:E45) -> 2543 | F46: =SUM(F30:F45) -> 2772 | G46: =SUM(G30:G45) -> 5315
B48: 全体 | C48: =D11+D25+D29+D46 -> 6996 | E48: =G11+G25+G29+G46 -> 16140 | G48: =E11+E25+E29+E46 -> 7932 | H48: =F11+F25+F29+F46 -> 8208
D49: （世帯数） | F49: （人口） | G49: （男） | H49: （女）

Sheet H29.8
B1: 行政区別の世帯数と人口
G2: (平成29年 | H2: 8月末日現在)
B4: 校区 | C4: 区名 | D4: 世帯数 | E4: 人口
E5: 男 | F5: 女 | G5: 全体
B6: 腹赤 | C6: 平原 | D6: 321 | E6: 351 | F6: 343 | G6: =SUM(E6:F6) -> 694
C7: 清源寺 | D7: 683 | E7: 788 | F7: 684 | G7: =SUM(E7:F7) -> 1472
C8: 上沖洲 | D8: 341 | E8: 376 | F8: 376 | G8: 752
C9: 腹赤 | D9: 351 | E9: 435 | F9: 472 | G9: 907
C10: 腹赤新町 | D10: 91 | E10: 105 | F10: 107 | G10: 212
C11: 校区合計 | D11: =SUM(D6:D10) -> 1787 | E11: =SUM(E6:E10) -> 2055 | F11: =SUM(F6:F10) -> 1982 | G11: =SUM(G6:G10) -> 4037
B12: 六栄 | C12: 折地 | D12: 194 | E12: 213 | F12: 257 | G12: =SUM(E12:F12) -> 470
C13: 赤崎 | D13: 127 | E13: 170 | F13: 169 | G13: =SUM(E13:F13) -> 339
C14: 高田 | D14: 57 | E14: 78 | F14: 86 | G14: 164
C15: 鷲巣 | D15: 218 | E15: 271 | F15: 260 | G15: 531
C16: 立野 | D16: 177 | E16: 181 | F16: 187 | G16: 368
C17: 向野 | D17: 381 | E17: 449 | F17: 473 | G17: 922
C18: 宮崎 | D18: 152 | E18: 183 | F18: 197 | G18: 380
C19: 赤田 | D19: 99 | E19: 99 | F19: 125 | G19: 224
C20: 葛輪 | D20: 70 | E20: 77 | F20: 94 | G20: 171
C21: 永方 | D21: 107 | E21: 100 | F21: 146 | G21: 246
C22: 塩屋 | D22: 92 | E22: 93 | F22: 111 | G22: 204
C23: 向野北 | D23: 238 | E23: 283 | F23: 141 | G23: 424
C24: 古城 | D24: 265 | E24: 328 | F24: 344 | G24: 672
C25: 校区合計 | D25: =SUM(D12:D24) -> 2177 | E25: =SUM(E12:E24) -> 2525 | F25: =SUM(F12:F24) -> 2590 | G25: =SUM(G12:G24) -> 5115
B26: 清里 | C26: 建浜 | D26: 288 | E26: 365 | F26: 379 | G26: =SUM(E26:F26) -> 744
C27: 駅通 | D27: 129 | E27: 153 | F27: 149 | G27: =SUM(E27:F27) -> 302
C28: 梅田 | D28: 264 | E28: 293 | F28: 334 | G28: 627
C29: 校区合計 | D29: =SUM(D26:D28) -> 681 | E29: 811 | F29: =SUM(F26:F28) -> 862 | G29: =SUM(G26:G28) -> 1673
B30: 長洲 | C30: 出町 | D30: 218 | E30: 240 | F30: 255 | G30: =SUM(E30:F30) -> 495
C31: 新町 | D31: 156 | E31: 174 | F31: 174 | G31: =SUM(E31:F31) -> 348
C32: 西新町 | D32: 37 | E32: 29 | F32: 35 | G32: 64
C33: 宮ノ町 | D33: 133 | E33: 150 | F33: 154 | G33: 304
C34: 松原 | D34: 103 | E34: 111 | F34: 113 | G34: 224
C35: 新山 | D35: 293 | E35: 303 | F35: 352 | G35: 655
C36: 宝町 | D36: 147 | E36: 132 | F36: 151 | G36: 283
C37: 磯町 | D37: 115 | E37: 102 | F37: 126 | G37: 228
C38: 上町 | D38: 72 | E38: 76 | F38: 83 | G38: 159
C39: 中町 | D39: 55 | E39: 61 | F39: 67 | G39: 128
C40: 下本 | D40: 43 | E40: 35 | F40: 58 | G40: 93
C41: 今町 | D41: 47 | E41: 48 | F41: 69 | G41: 117
C42: 下東 | D42: 243 | E42: 292 | F42: 302 | G42: 594
C43: 西荒神 | D43: 62 | E43: 72 | F43: 67 | G43: 139
C44: 東荒神 | D44: 368 | E44: 406 | F44: 447 | G44: 853
C45: 大明神 | D45: 269 | E45: 310 | F45: 320 | G45: 630
C46: 校区合計 | D46: =SUM(D30:D45) -> 2361 | E46: =SUM(E30:E45) -> 2541 | F46: =SUM(F30:F45) -> 2773 | G46: =SUM(G30:G45) -> 5314
B48: 全体 | C48: =D11+D25+D29+D46 -> 7006 | E48: =G11+G25+G29+G46 -> 16139 | G48: =E11+E25+E29+E46 -> 7932 | H48: =F11+F25+F29+F46 -> 8207
D49: （世帯数） | F49: （人口） | G49: （男） | H49: （女）

Sheet H29.9
B1: 行政区別の世帯数と人口
G2: (平成29年 | H2: 9月末日現在)
B4: 校区 | C4: 区名 | D4: 世帯数 | E4: 人口
E5: 男 | F5: 女 | G5: 全体
B6: 腹赤 | C6: 平原 | D6: 324 | E6: 352 | F6: 345 | G6: =SUM(E6:F6) -> 697
C7: 清源寺 | D7: 679 | E7: 784 | F7: 680 | G7: =SUM(E7:F7) -> 1464
C8: 上沖洲 | D8: 371 | E8: 383 | F8: 397 | G8: 780
C9: 腹赤 | D9: 350 | E9: 434 | F9: 470 | G9: 904
C10: 腹赤新町 | D10: 91 | E10: 105 | F10: 107 | G10: 212
C11: 校区合計 | D11: =SUM(D6:D10) -> 1815 | E11: =SUM(E6:E10) -> 2058 | F11: =SUM(F6:F10) -> 1999 | G11: =SUM(G6:G10) -> 4057
B12: 六栄 | C12: 折地 | D12: 194 | E12: 214 | F12: 256 | G12: =SUM(E12:F12) -> 470
C13: 赤崎 | D13: 126 | E13: 170 | F13: 168 | G13: =SUM(E13:F13) -> 338
C14: 高田 | D14: 58 | E14: 79 | F14: 90 | G14: 169
C15: 鷲巣 | D15: 218 | E15: 270 | F15: 255 | G15: 525
C16: 立野 | D16: 177 | E16: 179 | F16: 186 | G16: 365
C17: 向野 | D17: 380 | E17: 449 | F17: 472 | G17: 921
C18: 宮崎 | D18: 152 | E18: 183 | F18: 196 | G18: 379
C19: 赤田 | D19: 98 | E19: 99 | F19: 124 | G19: 223
C20: 葛輪 | D20: 71 | E20: 78 | F20: 95 | G20: 173
C21: 永方 | D21: 107 | E21: 99 | F21: 146 | G21: 245
C22: 塩屋 | D22: 92 | E22: 93 | F22: 111 | G22: 204
C23: 向野北 | D23: 236 | E23: 282 | F23: 136 | G23: 418
C24: 古城 | D24: 264 | E24: 328 | F24: 344 | G24: 672
C25: 校区合計 | D25: =SUM(D12:D24) -> 2173 | E25: =SUM(E12:E24) -> 2523 | F25: =SUM(F12:F24) -> 2579 | G25: =SUM(G12:G24) -> 5102
B26: 清里 | C26: 建浜 | D26: 287 | E26: 366 | F26: 381 | G26: =SUM(E26:F26) -> 747
C27: 駅通 | D27: 128 | E27: 152 | F27: 149 | G27: =SUM(E27:F27) -> 301
C28: 梅田 | D28: 265 | E28: 291 | F28: 332 | G28: 623
C29: 校区合計 | D29: =SUM(D26:D28) -> 680 | E29: =SUM(E26:E28) -> 809 | F29: =SUM(F26:F28) -> 862 | G29: =SUM(G26:G28) -> 1671
B30: 長洲 | C30: 出町 | D30: 218 | E30: 239 | F30: 256 | G30: =SUM(E30:F30) -> 495
C31: 新町 | D31: 161 | E31: 179 | F31: 175 | G31: =SUM(E31:F31) -> 354
C32: 西新町 | D32: 37 | E32: 29 | F32: 35 | G32: 64
C33: 宮ノ町 | D33: 131 | E33: 151 | F33: 153 | G33: 304
C34: 松原 | D34: 103 | E34: 110 | F34: 113 | G34: 223
C35: 新山 | D35: 293 | E35: 302 | F35: 350 | G35: 652
C36: 宝町 | D36: 144 | E36: 132 | F36: 149 | G36: 281
C37: 磯町 | D37: 115 | E37: 101 | F37: 126 | G37: 227
C38: 上町 | D38: 72 | E38: 76 | F38: 83 | G38: 159
C39: 中町 | D39: 55 | E39: 61 | F39: 67 | G39: 128
C40: 下本 | D40: 43 | E40: 35 | F40: 58 | G40: 93
C41: 今町 | D41: 46 | E41: 48 | F41: 67 | G41: 115
C42: 下東 | D42: 244 | E42: 294 | F42: 300 | G42: 594
C43: 西荒神 | D43: 62 | E43: 72 | F43: 67 | G43: 139
C44: 東荒神 | D44: 368 | E44: 405 | F44: 444 | G44: 849
C45: 大明神 | D45: 273 | E45: 312 | F45: 321 | G45: 633
C46: 校区合計 | D46: =SUM(D30:D45) -> 2365 | E46: =SUM(E30:E45) -> 2546 | F46: =SUM(F30:F45) -> 2764 | G46: =SUM(G30:G45) -> 5310
B48: 全体 | C48: =D11+D25+D29+D46 -> 7033 | E48: =G11+G25+G29+G46 -> 16140 | G48: =E11+E25+E29+E46 -> 7936 | H48: =F11+F25+F29+F46 -> 8204
D49: （世帯数） | F49: （人口） | G49: （男） | H49: （女）

Sheet H29.10
B1: 行政区別の世帯数と人口
G2: (平成29年 | H2: 10月末日現在)
B4: 校区 | C4: 区名 | D4: 世帯数 | E4: 人口
E5: 男 | F5: 女 | G5: 全体
B6: 腹赤 | C6: 平原 | D6: 330 | E6: 357 | F6: 345 | G6: =SUM(E6:F6) -> 702
C7: 清源寺 | D7: 674 | E7: 778 | F7: 683 | G7: =SUM(E7:F7) -> 1461
C8: 上沖洲 | D8: 372 | E8: 382 | F8: 395 | G8: 777
C9: 腹赤 | D9: 351 | E9: 436 | F9: 472 | G9: 908
C10: 腹赤新町 | D10: 90 | E10: 105 | F10: 107 | G10: 212
C11: 校区合計 | D11: =SUM(D6:D10) -> 1817 | E11: =SUM(E6:E10) -> 2058 | F11: =SUM(F6:F10) -> 2002 | G11: =SUM(G6:G10) -> 4060
B12: 六栄 | C12: 折地 | D12: 194 | E12: 212 | F12: 255 | G12: =SUM(E12:F12) -> 467
C13: 赤崎 | D13: 126 | E13: 168 | F13: 169 | G13: =SUM(E13:F13) -> 337
C14: 高田 | D14: 58 | E14: 79 | F14: 90 | G14: 169
C15: 鷲巣 | D15: 219 | E15: 275 | F15: 257 | G15: 532
C16: 立野 | D16: 177 | E16: 179 | F16: 187 | G16: 366
C17: 向野 | D17: 379 | E17: 445 | F17: 471 | G17: 916
C18: 宮崎 | D18: 153 | E18: 184 | F18: 197 | G18: 381
C19: 赤田 | D19: 99 | E19: 101 | F19: 128 | G19: 229
C20: 葛輪 | D20: 71 | E20: 77 | F20: 95 | G20: 172
C21: 永方 | D21: 107 | E21: 99 | F21: 146 | G21: 245
C22: 塩屋 | D22: 93 | E22: 96 | F22: 112 | G22: 208
C23: 向野北 | D23: 235 | E23: 280 | F23: 135 | G23: 415
C24: 古城 | D24: 264 | E24: 329 | F24: 345 | G24: 674
C25: 校区合計 | D25: =SUM(D12:D24) -> 2175 | E25: =SUM(E12:E24) -> 2524 | F25: =SUM(F12:F24) -> 2587 | G25: =SUM(G12:G24) -> 5111
B26: 清里 | C26: 建浜 | D26: 291 | E26: 370 | F26: 386 | G26: =SUM(E26:F26) -> 756
C27: 駅通 | D27: 129 | E27: 155 | F27: 151 | G27: =SUM(E27:F27) -> 306
C28: 梅田 | D28: 263 | E28: 292 | F28: 332 | G28: 624
C29: 校区合計 | D29: =SUM(D26:D28) -> 683 | E29: =SUM(E26:E28) -> 817 | F29: =SUM(F26:F28) -> 869 | G29: =SUM(G26:G28) -> 1686
B30: 長洲 | C30: 出町 | D30: 216 | E30: 234 | F30: 253 | G30: =SUM(E30:F30) -> 487
C31: 新町 | D31: 161 | E31: 178 | F31: 175 | G31: =SUM(E31:F31) -> 353
C32: 西新町 | D32: 38 | E32: 30 | F32: 36 | G32: 66
C33: 宮ノ町 | D33: 132 | E33: 151 | F33: 153 | G33: 304
C34: 松原 | D34: 103 | E34: 110 | F34: 113 | G34: 223
C35: 新山 | D35: 293 | E35: 302 | F35: 350 | G35: 652
C36: 宝町 | D36: 143 | E36: 129 | F36: 148 | G36: 277
C37: 磯町 | D37: 115 | E37: 102 | F37: 125 | G37: 227
C38: 上町 | D38: 72 | E38: 76 | F38: 84 | G38: 160
C39: 中町 | D39: 56 | E39: 63 | F39: 67 | G39: 130
C40: 下本 | D40: 43 | E40: 35 | F40: 58 | G40: 93
C41: 今町 | D41: 46 | E41: 47 | F41: 67 | G41: 114
C42: 下東 | D42: 248 | E42: 298 | F42: 302 | G42: 600
C43: 西荒神 | D43: 62 | E43: 72 | F43: 67 | G43: 139
C44: 東荒神 | D44: 365 | E44: 404 | F44: 440 | G44: 844
C45: 大明神 | D45: 269 | E45: 306 | F45: 318 | G45: 624
C46: 校区合計 | D46: =SUM(D30:D45) -> 2362 | E46: =SUM(E30:E45) -> 2537 | F46: =SUM(F30:F45) -> 2756 | G46: =SUM(G30:G45) -> 5293
B48: 全体 | C48: =D11+D25+D29+D46 -> 7037 | E48: =G11+G25+G29+G46 -> 16150 | G48: =E11+E25+E29+E46 -> 7936 | H48: =F11+F25+F29+F46 -> 8214
D49: （世帯数） | F49: （人口） | G49: （男） | H49: （女）

Sheet H29.11
B1: 行政区別の世帯数と人口
G2: (平成29年 | H2: 11月末日現在)
B4: 校区 | C4: 区名 | D4: 世帯数 | E4: 人口
E5: 男 | F5: 女 | G5: 全体
B6: 腹赤 | C6: 平原 | D6: 328 | E6: 352 | F6: 342 | G6: =SUM(E6:F6) -> 694
C7: 清源寺 | D7: 672 | E7: 775 | F7: 683 | G7: =SUM(E7:F7) -> 1458
C8: 上沖洲 | D8: 372 | E8: 383 | F8: 396 | G8: 779
C9: 腹赤 | D9: 350 | E9: 437 | F9: 473 | G9: 910
C10: 腹赤新町 | D10: 90 | E10: 105 | F10: 107 | G10: 212
C11: 校区合計 | D11: =SUM(D6:D10) -> 1812 | E11: =SUM(E6:E10) -> 2052 | F11: =SUM(F6:F10) -> 2001 | G11: =SUM(G6:G10) -> 4053
B12: 六栄 | C12: 折地 | D12: 194 | E12: 212 | F12: 256 | G12: =SUM(E12:F12) -> 468
C13: 赤崎 | D13: 126 | E13: 171 | F13: 168 | G13: =SUM(E13:F13) -> 339
C14: 高田 | D14: 58 | E14: 78 | F14: 90 | G14: 168
C15: 鷲巣 | D15: 220 | E15: 276 | F15: 259 | G15: 535
C16: 立野 | D16: 175 | E16: 176 | F16: 187 | G16: 363
C17: 向野 | D17: 380 | E17: 446 | F17: 472 | G17: 918
C18: 宮崎 | D18: 158 | E18: 183 | F18: 202 | G18: 385
C19: 赤田 | D19: 99 | E19: 101 | F19: 128 | G19: 229
C20: 葛輪 | D20: 71 | E20: 78 | F20: 95 | G20: 173
C21: 永方 | D21: 104 | E21: 99 | F21: 142 | G21: 241
C22: 塩屋 | D22: 93 | E22: 96 | F22: 112 | G22: 208
C23: 向野北 | D23: 258 | E23: 303 | F23: 137 | G23: 440
C24: 古城 | D24: 262 | E24: 328 | F24: 344 | G24: 672
C25: 校区合計 | D25: =SUM(D12:D24) -> 2198 | E25: =SUM(E12:E24) -> 2547 | F25: =SUM(F12:F24) -> 2592 | G25: =SUM(G12:G24) -> 5139
B26: 清里 | C26: 建浜 | D26: 291 | E26: 366 | F26: 382 | G26: =SUM(E26:F26) -> 748
C27: 駅通 | D27: 129 | E27: 155 | F27: 151 | G27: =SUM(E27:F27) -> 306
C28: 梅田 | D28: 262 | E28: 293 | F28: 331 | G28: 624
C29: 校区合計 | D29: =SUM(D26:D28) -> 682 | E29: =SUM(E26:E28) -> 814 | F29: =SUM(F26:F28) -> 864 | G29: =SUM(G26:G28) -> 1678
B30: 長洲 | C30: 出町 | D30: 218 | E30: 239 | F30: 255 | G30: =SUM(E30:F30) -> 494
C31: 新町 | D31: 158 | E31: 175 | F31: 175 | G31: =SUM(E31:F31) -> 350
C32: 西新町 | D32: 38 | E32: 29 | F32: 36 | G32: 65
C33: 宮ノ町 | D33: 135 | E33: 154 | F33: 153 | G33: 307
C34: 松原 | D34: 103 | E34: 110 | F34: 112 | G34: 222
C35: 新山 | D35: 294 | E35: 303 | F35: 350 | G35: 653
C36: 宝町 | D36: 143 | E36: 128 | F36: 148 | G36: 276
C37: 磯町 | D37: 116 | E37: 103 | F37: 126 | G37: 229
C38: 上町 | D38: 70 | E38: 75 | F38: 82 | G38: 157
C39: 中町 | D39: 56 | E39: 63 | F39: 67 | G39: 130
C40: 下本 | D40: 43 | E40: 35 | F40: 58 | G40: 93
C41: 今町 | D41: 46 | E41: 47 | F41: 67 | G41: 114
C42: 下東 | D42: 247 | E42: 297 | F42: 299 | G42: 596
C43: 西荒神 | D43: 62 | E43: 72 | F43: 67 | G43: 139
C44: 東荒神 | D44: 362 | E44: 399 | F44: 444 | G44: 843
C45: 大明神 | D45: 269 | E45: 306 | F45: 318 | G45: 624
C46: 校区合計 | D46: =SUM(D30:D45) -> 2360 | E46: =SUM(E30:E45) -> 2535 | F46: =SUM(F30:F45) -> 2757 | G46: =SUM(G30:G45) -> 5292
B48: 全体 | C48: =D11+D25+D29+D46 -> 7052 | E48: =G11+G25+G29+G46 -> 16162 | G48: =E11+E25+E29+E46 -> 7948 | H48: =F11+F25+F29+F46 -> 8214
D49: （世帯数） | F49: （人口） | G49: （男） | H49: （女）

Sheet H29.12
B1: 行政区別の世帯数と人口
G2: (平成29年 | H2: 12月末日現在)
B4: 校区 | C4: 区名 | D4: 世帯数 | E4: 人口
E5: 男 | F5: 女 | G5: 全体
B6: 腹赤 | C6: 平原 | D6: 327 | E6: 353 | F6: 344 | G6: =SUM(E6:F6) -> 697
C7: 清源寺 | D7: 672 | E7: 773 | F7: 683 | G7: =SUM(E7:F7) -> 1456
C8: 上沖洲 | D8: 372 | E8: 383 | F8: 396 | G8: 779
C9: 腹赤 | D9: 349 | E9: 436 | F9: 475 | G9: 911
C10: 腹赤新町 | D10: 90 | E10: 105 | F10: 107 | G10: 212
C11: 校区合計 | D11: =SUM(D6:D10) -> 1810 | E11: =SUM(E6:E10) -> 2050 | F11: =SUM(F6:F10) -> 2005 | G11: =SUM(G6:G10) -> 4055
B12: 六栄 | C12: 折地 | D12: 194 | E12: 212 | F12: 254 | G12: =SUM(E12:F12) -> 466
C13: 赤崎 | D13: 126 | E13: 169 | F13: 167 | G13: =SUM(E13:F13) -> 336
C14: 高田 | D14: 58 | E14: 78 | F14: 90 | G14: 168
C15: 鷲巣 | D15: 221 | E15: 275 | F15: 261 | G15: 536
C16: 立野 | D16: 174 | E16: 176 | F16: 186 | G16: 362
C17: 向野 | D17: 379 | E17: 449 | F17: 469 | G17: 918
C18: 宮崎 | D18: 159 | E18: 184 | F18: 203 | G18: 387
C19: 赤田 | D19: 99 | E19: 101 | F19: 128 | G19: 229
C20: 葛輪 | D20: 71 | E20: 78 | F20: 95 | G20: 173
C21: 永方 | D21: 104 | E21: 99 | F21: 142 | G21: 241
C22: 塩屋 | D22: 93 | E22: 96 | F22: 114 | G22: 210
C23: 向野北 | D23: 277 | E23: 323 | F23: 138 | G23: 461
C24: 古城 | D24: 263 | E24: 328 | F24: 344 | G24: 672
C25: 校区合計 | D25: =SUM(D12:D24) -> 2218 | E25: =SUM(E12:E24) -> 2568 | F25: =SUM(F12:F24) -> 2591 | G25: =SUM(G12:G24) -> 5159
B26: 清里 | C26: 建浜 | D26: 293 | E26: 368 | F26: 386 | G26: =SUM(E26:F26) -> 754
C27: 駅通 | D27: 128 | E27: 150 | F27: 150 | G27: =SUM(E27:F27) -> 300
C28: 梅田 | D28: 263 | E28: 296 | F28: 333 | G28: 629
C29: 校区合計 | D29: =SUM(D26:D28) -> 684 | E29: =SUM(E26:E28) -> 814 | F29: =SUM(F26:F28) -> 869 | G29: =SUM(G26:G28) -> 1683
B30: 長洲 | C30: 出町 | D30: 216 | E30: 239 | F30: 251 | G30: =SUM(E30:F30) -> 490
C31: 新町 | D31: 156 | E31: 173 | F31: 175 | G31: =SUM(E31:F31) -> 348
C32: 西新町 | D32: 37 | E32: 29 | F32: 35 | G32: 64
C33: 宮ノ町 | D33: 134 | E33: 153 | F33: 151 | G33: 304
C34: 松原 | D34: 102 | E34: 110 | F34: 110 | G34: 220
C35: 新山 | D35: 295 | E35: 304 | F35: 352 | G35: 656
C36: 宝町 | D36: 143 | E36: 128 | F36: 148 | G36: 276
C37: 磯町 | D37: 115 | E37: 102 | F37: 126 | G37: 228
C38: 上町 | D38: 70 | E38: 74 | F38: 81 | G38: 155
C39: 中町 | D39: 56 | E39: 63 | F39: 67 | G39: 130
C40: 下本 | D40: 43 | E40: 35 | F40: 58 | G40: 93
C41: 今町 | D41: 46 | E41: 47 | F41: 66 | G41: 113
C42: 下東 | D42: 246 | E42: 297 | F42: 298 | G42: 595
C43: 西荒神 | D43: 61 | E43: 71 | F43: 67 | G43: 138
C44: 東荒神 | D44: 364 | E44: 403 | F44: 440 | G44: 843
C45: 大明神 | D45: 272 | E45: 308 | F45: 318 | G45: 626
C46: 校区合計 | D46: =SUM(D30:D45) -> 2356 | E46: =SUM(E30:E45) -> 2536 | F46: =SUM(F30:F45) -> 2743 | G46: =SUM(G30:G45) -> 5279
B48: 全体 | C48: =D11+D25+D29+D46 -> 7068 | E48: =G11+G25+G29+G46 -> 16176 | G48: =E11+E25+E29+E46 -> 7968 | H48: =F11+F25+F29+F46 -> 8208
D49: （世帯数） | F49: （人口） | G49: （男） | H49: （女）

Sheet H30.1
B1: 行政区別の世帯数と人口
G2: (平成30年 | H2: 1月末日現在)
B4: 校区 | C4: 区名 | D4: 世帯数 | E4: 人口
E5: 男 | F5: 女 | G5: 全体
B6: 腹赤 | C6: 平原 | D6: 322 | E6: 351 | F6: 341 | G6: =SUM(E6:F6) -> 692
C7: 清源寺 | D7: 673 | E7: 773 | F7: 686 | G7: =SUM(E7:F7) -> 1459
C8: 上沖洲 | D8: 373 | E8: 382 | F8: 395 | G8: 777
C9: 腹赤 | D9: 348 | E9: 434 | F9: 474 | G9: 908
C10: 腹赤新町 | D10: 90 | E10: 105 | F10: 107 | G10: 212
C11: 校区合計 | D11: =SUM(D6:D10) -> 1806 | E11: =SUM(E6:E10) -> 2045 | F11: =SUM(F6:F10) -> 2003 | G11: =SUM(G6:G10) -> 4048
B12: 六栄 | C12: 折地 | D12: 195 | E12: 213 | F12: 256 | G12: =SUM(E12:F12) -> 469
C13: 赤崎 | D13: 126 | E13: 169 | F13: 166 | G13: =SUM(E13:F13) -> 335
C14: 高田 | D14: 58 | E14: 77 | F14: 90 | G14: 167
C15: 鷲巣 | D15: 220 | E15: 273 | F15: 261 | G15: 534
C16: 立野 | D16: 172 | E16: 175 | F16: 184 | G16: 359
C17: 向野 | D17: 379 | E17: 449 | F17: 467 | G17: 916
C18: 宮崎 | D18: 158 | E18: 184 | F18: 201 | G18: 385
C19: 赤田 | D19: 99 | E19: 101 | F19: 128 | G19: 229
C20: 葛輪 | D20: 71 | E20: 78 | F20: 95 | G20: 173
C21: 永方 | D21: 104 | E21: 99 | F21: 143 | G21: 242
C22: 塩屋 | D22: 92 | E22: 96 | F22: 112 | G22: 208
C23: 向野北 | D23: 254 | E23: 297 | F23: 135 | G23: 432
C24: 古城 | D24: 262 | E24: 330 | F24: 341 | G24: 671
C25: 校区合計 | D25: =SUM(D12:D24) -> 2190 | E25: 2541 | F25: =SUM(F12:F24) -> 2579 | G25: =SUM(G12:G24) -> 5120
B26: 清里 | C26: 建浜 | D26: 296 | E26: 368 | F26: 389 | G26: =SUM(E26:F26) -> 757
C27: 駅通 | D27: 128 | E27: 151 | F27: 148 | G27: =SUM(E27:F27) -> 299
C28: 梅田 | D28: 263 | E28: 296 | F28: 333 | G28: 629
C29: 校区合計 | D29: =SUM(D26:D28) -> 687 | E29: =SUM(E26:E28) -> 815 | F29: =SUM(F26:F28) -> 870 | G29: =SUM(G26:G28) -> 1685
B30: 長洲 | C30: 出町 | D30: 217 | E30: 239 | F30: 254 | G30: =SUM(E30:F30) -> 493
C31: 新町 | D31: 156 | E31: 173 | F31: 176 | G31: =SUM(E31:F31) -> 349
C32: 西新町 | D32: 38 | E32: 30 | F32: 36 | G32: 66
C33: 宮ノ町 | D33: 137 | E33: 156 | F33: 153 | G33: 309
C34: 松原 | D34: 103 | E34: 110 | F34: 110 | G34: 220
C35: 新山 | D35: 294 | E35: 301 | F35: 351 | G35: 652
C36: 宝町 | D36: 142 | E36: 126 | F36: 145 | G36: 271
C37: 磯町 | D37: 115 | E37: 97 | F37: 126 | G37: 223
C38: 上町 | D38: 69 | E38: 73 | F38: 80 | G38: 153
C39: 中町 | D39: 56 | E39: 62 | F39: 67 | G39: 129
C40: 下本 | D40: 43 | E40: 35 | F40: 58 | G40: 93
C41: 今町 | D41: 46 | E41: 47 | F41: 66 | G41: 113
C42: 下東 | D42: 246 | E42: 297 | F42: 299 | G42: 596
C43: 西荒神 | D43: 61 | E43: 71 | F43: 67 | G43: 138
C44: 東荒神 | D44: 364 | E44: 402 | F44: 441 | G44: 843
C45: 大明神 | D45: 274 | E45: 308 | F45: 320 | G45: 628
C46: 校区合計 | D46: =SUM(D30:D45) -> 2361 | E46: =SUM(E30:E45) -> 2527 | F46: =SUM(F30:F45) -> 2749 | G46: =SUM(G30:G45) -> 5276
B48: 全体 | C48: =D11+D25+D29+D46 -> 7044 | E48: =G11+G25+G29+G46 -> 16129 | G48: =E11+E25+E29+E46 -> 7928 | H48: =F11+F25+F29+F46 -> 8201
D49: （世帯数） | F49: （人口） | G49: （男） | H49: （女）

Sheet H30.2
B1: 行政区別の世帯数と人口
G2: (平成30年 | H2: 2月末日現在)
B4: 校区 | C4: 区名 | D4: 世帯数 | E4: 人口
E5: 男 | F5: 女 | G5: 全体
B6: 腹赤 | C6: 平原 | D6: 321 | E6: 352 | F6: 338 | G6: =SUM(E6:F6) -> 690
C7: 清源寺 | D7: 668 | E7: 768 | F7: 684 | G7: =SUM(E7:F7) -> 1452
C8: 上沖洲 | D8: 384 | E8: 378 | F8: 405 | G8: 783
C9: 腹赤 | D9: 348 | E9: 435 | F9: 472 | G9: 907
C10: 腹赤新町 | D10: 90 | E10: 105 | F10: 106 | G10: 211
C11: 校区合計 | D11: =SUM(D6:D10) -> 1811 | E11: =SUM(E6:E10) -> 2038 | F11: =SUM(F6:F10) -> 2005 | G11: =SUM(G6:G10) -> 4043
B12: 六栄 | C12: 折地 | D12: 195 | E12: 214 | F12: 254 | G12: =SUM(E12:F12) -> 468
C13: 赤崎 | D13: 126 | E13: 168 | F13: 166 | G13: =SUM(E13:F13) -> 334
C14: 高田 | D14: 58 | E14: 77 | F14: 90 | G14: 167
C15: 鷲巣 | D15: 221 | E15: 271 | F15: 259 | G15: 530
C16: 立野 | D16: 171 | E16: 174 | F16: 182 | G16: 356
C17: 向野 | D17: 379 | E17: 451 | F17: 471 | G17: 922
C18: 宮崎 | D18: 157 | E18: 184 | F18: 200 | G18: 384
C19: 赤田 | D19: 99 | E19: 101 | F19: 128 | G19: 229
C20: 葛輪 | D20: 73 | E20: 79 | F20: 95 | G20: 174
C21: 永方 | D21: 104 | E21: 98 | F21: 143 | G21: 241
C22: 塩屋 | D22: 93 | E22: 97 | F22: 112 | G22: 209
C23: 向野北 | D23: 251 | E23: 292 | F23: 129 | G23: 421
C24: 古城 | D24: 264 | E24: 330 | F24: 342 | G24: 672
C25: 校区合計 | D25: =SUM(D12:D24) -> 2191 | E25: =SUM(E12:E24) -> 2536 | F25: =SUM(F12:F24) -> 2571 | G25: =SUM(G12:G24) -> 5107
B26: 清里 | C26: 建浜 | D26: 296 | E26: 367 | F26: 389 | G26: =SUM(E26:F26) -> 756
C27: 駅通 | D27: 130 | E27: 151 | F27: 150 | G27: =SUM(E27:F27) -> 301
C28: 梅田 | D28: 263 | E28: 294 | F28: 333 | G28: 627
C29: 校区合計 | D29: =SUM(D26:D28) -> 689 | E29: =SUM(E26:E28) -> 812 | F29: =SUM(F26:F28) -> 872 | G29: =SUM(G26:G28) -> 1684
B30: 長洲 | C30: 出町 | D30: 218 | E30: 238 | F30: 254 | G30: =SUM(E30:F30) -> 492
C31: 新町 | D31: 154 | E31: 171 | F31: 177 | G31: =SUM(E31:F31) -> 348
C32: 西新町 | D32: 38 | E32: 30 | F32: 36 | G32: 66
C33: 宮ノ町 | D33: 137 | E33: 155 | F33: 153 | G33: 308
C34: 松原 | D34: 103 | E34: 110 | F34: 110 | G34: 220
C35: 新山 | D35: 293 | E35: 300 | F35: 348 | G35: 648
C36: 宝町 | D36: 143 | E36: 125 | F36: 145 | G36: 270
C37: 磯町 | D37: 117 | E37: 100 | F37: 125 | G37: 225
C38: 上町 | D38: 69 | E38: 73 | F38: 78 | G38: 151
C39: 中町 | D39: 56 | E39: 62 | F39: 67 | G39: 129
C40: 下本 | D40: 43 | E40: 36 | F40: 58 | G40: 94
C41: 今町 | D41: 46 | E41: 47 | F41: 65 | G41: 112
C42: 下東 | D42: 248 | E42: 298 | F42: 301 | G42: 599
C43: 西荒神 | D43: 61 | E43: 71 | F43: 67 | G43: 138
C44: 東荒神 | D44: 361 | E44: 399 | F44: 438 | G44: 837
C45: 大明神 | D45: 276 | E45: 312 | F45: 320 | G45: 632
C46: 校区合計 | D46: =SUM(D30:D45) -> 2363 | E46: =SUM(E30:E45) -> 2527 | F46: =SUM(F30:F45) -> 2742 | G46: =SUM(G30:G45) -> 5269
B48: 全体 | C48: =D11+D25+D29+D46 -> 7054 | E48: =G11+G25+G29+G46 -> 16103 | G48: =E11+E25+E29+E46 -> 7913 | H48: =F11+F25+F29+F46 -> 8190
D49: （世帯数） | F49: （人口） | G49: （男） | H49: （女）

Sheet H30.3
B1: 行政区別の世帯数と人口
G2: (平成30年 | H2: 3月末日現在)
B4: 校区 | C4: 区名 | D4: 世帯数 | E4: 人口
E5: 男 | F5: 女 | G5: 全体
B6: 腹赤 | C6: 平原 | D6: 314 | E6: 339 | F6: 333 | G6: =SUM(E6:F6) -> 672
C7: 清源寺 | D7: 669 | E7: 769 | F7: 682 | G7: =SUM(E7:F7) -> 1451
C8: 上沖洲 | D8: 388 | E8: 382 | F8: 404 | G8: 786
C9: 腹赤 | D9: 344 | E9: 426 | F9: 466 | G9: 892
C10: 腹赤新町 | D10: 90 | E10: 104 | F10: 106 | G10: 210
C11: 校区合計 | D11: =SUM(D6:D10) -> 1805 | E11: 2020 | F11: =SUM(F6:F10) -> 1991 | G11: =SUM(G6:G10) -> 4011
B12: 六栄 | C12: 折地 | D12: 194 | E12: 214 | F12: 254 | G12: =SUM(E12:F12) -> 468
C13: 赤崎 | D13: 126 | E13: 168 | F13: 167 | G13: =SUM(E13:F13) -> 335
C14: 高田 | D14: 56 | E14: 76 | F14: 87 | G14: 163
C15: 鷲巣 | D15: 218 | E15: 264 | F15: 256 | G15: 520
C16: 立野 | D16: 170 | E16: 174 | F16: 182 | G16: 356
C17: 向野 | D17: 387 | E17: 460 | F17: 477 | G17: 937
C18: 宮崎 | D18: 157 | E18: 181 | F18: 200 | G18: 381
C19: 赤田 | D19: 98 | E19: 101 | F19: 127 | G19: 228
C20: 葛輪 | D20: 73 | E20: 79 | F20: 95 | G20: 174
C21: 永方 | D21: 104 | E21: 98 | F21: 142 | G21: 240
C22: 塩屋 | D22: 91 | E22: 95 | F22: 110 | G22: 205
C23: 向野北 | D23: 245 | E23: 286 | F23: 119 | G23: 405
C24: 古城 | D24: 266 | E24: 331 | F24: 345 | G24: 676
C25: 校区合計 | D25: =SUM(D12:D24) -> 2185 | E25: =SUM(E12:E24) -> 2527 | F25: =SUM(F12:F24) -> 2561 | G25: =SUM(G12:G24) -> 5088
B26: 清里 | C26: 建浜 | D26: 299 | E26: 368 | F26: 394 | G26: =SUM(E26:F26) -> 762
C27: 駅通 | D27: 139 | E27: 157 | F27: 163 | G27: =SUM(E27:F27) -> 320
C28: 梅田 | D28: 262 | E28: 292 | F28: 330 | G28: 622
C29: 校区合計 | D29: =SUM(D26:D28) -> 700 | E29: =SUM(E26:E28) -> 817 | F29: =SUM(F26:F28) -> 887 | G29: =SUM(G26:G28) -> 1704
B30: 長洲 | C30: 出町 | D30: 219 | E30: 239 | F30: 254 | G30: =SUM(E30:F30) -> 493
C31: 新町 | D31: 154 | E31: 170 | F31: 177 | G31: =SUM(E31:F31) -> 347
C32: 西新町 | D32: 38 | E32: 30 | F32: 36 | G32: 66
C33: 宮ノ町 | D33: 137 | E33: 155 | F33: 154 | G33: 309
C34: 松原 | D34: 104 | E34: 110 | F34: 111 | G34: 221
C35: 新山 | D35: 293 | E35: 298 | F35: 348 | G35: 646
C36: 宝町 | D36: 143 | E36: 125 | F36: 142 | G36: 267
C37: 磯町 | D37: 117 | E37: 100 | F37: 125 | G37: 225
C38: 上町 | D38: 69 | E38: 73 | F38: 78 | G38: 151
C39: 中町 | D39: 56 | E39: 59 | F39: 66 | G39: 125
C40: 下本 | D40: 42 | E40: 36 | F40: 53 | G40: 89
C41: 今町 | D41: 47 | E41: 48 | F41: 67 | G41: 115
C42: 下東 | D42: 251 | E42: 301 | F42: 304 | G42: 605
C43: 西荒神 | D43: 61 | E43: 71 | F43: 67 | G43: 138
C44: 東荒神 | D44: 358 | E44: 393 | F44: 427 | G44: 820
C45: 大明神 | D45: 275 | E45: 312 | F45: 317 | G45: 629
C46: 校区合計 | D46: =SUM(D30:D45) -> 2364 | E46: =SUM(E30:E45) -> 2520 | F46: =SUM(F30:F45) -> 2726 | G46: =SUM(G30:G45) -> 5246
B48: 全体 | C48: =D11+D25+D29+D46 -> 7054 | E48: =G11+G25+G29+G46 -> 16049 | G48: =E11+E25+E29+E46 -> 7884 | H48: =F11+F25+F29+F46 -> 8165
D49: （世帯数） | F49: （人口） | G49: （男） | H49: （女）
